[Event "Early-Titled-Tuesday-Blitz-October-24-2023"]
[Site "Chess.com"]
[Date "2023.10.24"]
[Round "3"]
[White "motivated_bishop"]
[Black "OhanyanEminChess"]
[Result "0-1"]
[WhiteElo "2547"]
[BlackElo "2816"]
[TimeControl "180+1"]
[EndTime "8:28:10 PDT"]
[Termination "OhanyanEminChess won on time"]

1. d4 {[%clk 0:03:00.9]} 1... d5 {[%clk 0:02:57.7]} 2. c4 {[%clk 0:03:01.1]}
2... c6 {[%clk 0:02:58.2]} 3. cxd5 {[%clk 0:03:01.6]} 3... cxd5 {[%clk
0:02:59.1]} 4. Bf4 {[%clk 0:03:02]} 4... Nf6 {[%clk 0:02:59.3]} 5. Nc3 {[%clk
0:03:02.7]} 5... Nc6 {[%clk 0:02:59.6]} 6. e3 {[%clk 0:03:03.3]} 6... Bf5 {[%clk
0:02:59.9]} 7. Qb3 {[%clk 0:03:01]} 7... Na5 {[%clk 0:02:59.2]} 8. Qa4+ {[%clk
0:03:01.5]} 8... Bd7 {[%clk 0:02:59.4]} 9. Qc2 {[%clk 0:03:02.3]} 9... e6 {[%clk
0:02:59.9]} 10. Bd3 {[%clk 0:03:01.1]} 10... Rc8 {[%clk 0:02:55.9]} 11. Nf3
{[%clk 0:02:58.8]} 11... Bb4 {[%clk 0:02:54.2]} 12. O-O {[%clk 0:02:58.3]} 12...
O-O {[%clk 0:02:54.5]} 13. Rfc1 {[%clk 0:02:57.1]} 13... Bxc3 {[%clk 0:02:53.4]}
14. bxc3 {[%clk 0:02:57.3]} 14... Nc4 {[%clk 0:02:51.4]} 15. Ne5 {[%clk
0:02:53.6]} 15... Bb5 {[%clk 0:02:34]} 16. a4 {[%clk 0:02:50.4]} 16... Ba6
{[%clk 0:02:33.1]} 17. Bg5 {[%clk 0:02:42.9]} 17... h6 {[%clk 0:02:27.2]} 18.
Bxf6 {[%clk 0:02:39.5]} 18... gxf6 {[%clk 0:02:28.1]} 19. Nf3 {[%clk 0:02:30.3]}
19... f5 {[%clk 0:02:23]} 20. Qe2 {[%clk 0:02:22.9]} 20... Qa5 {[%clk
0:02:14.9]} 21. Nh4 {[%clk 0:01:52.8]} 21... Nd6 {[%clk 0:02:03.3]} 22. Bxa6
{[%clk 0:01:33.6]} 22... Qxa6 {[%clk 0:02:04.2]} 23. Qh5 {[%clk 0:01:33.6]}
23... Kg7 {[%clk 0:02:03.8]} 24. Kh1 {[%clk 0:01:15.4]} 24... Ne4 {[%clk
0:02:00]} 25. Rf1 {[%clk 0:01:11.4]} 25... Rxc3 {[%clk 0:01:56]} 26. Qf3 {[%clk
0:01:01.3]} 26... Rfc8 {[%clk 0:01:49.2]} 27. Qf4 {[%clk 0:00:55.4]} 27... Qd6
{[%clk 0:01:46.5]} 28. Qxd6 {[%clk 0:00:41.7]} 28... Nxd6 {[%clk 0:01:47.4]} 29.
Nf3 {[%clk 0:00:38.7]} 29... R8c4 {[%clk 0:01:28.4]} 30. h3 {[%clk 0:00:37.1]}
30... Rb4 {[%clk 0:01:26]} 31. Kg1 {[%clk 0:00:36.1]} 31... Nc4 {[%clk
0:01:25.3]} 32. Rfb1 {[%clk 0:00:34.6]} 32... Rxb1+ {[%clk 0:01:24.5]} 33. Rxb1
{[%clk 0:00:35.5]} 33... b6 {[%clk 0:01:25.2]} 34. Rb4 {[%clk 0:00:28.4]} 34...
Ra3 {[%clk 0:01:24.5]} 35. Ne5 {[%clk 0:00:25]} 35... Nd2 {[%clk 0:00:38.9]} 36.
g4 {[%clk 0:00:16.9]} 36... fxg4 {[%clk 0:00:37.6]} 37. hxg4 {[%clk 0:00:16.9]}
37... Ne4 {[%clk 0:00:35.7]} 38. Nc6 {[%clk 0:00:15.9]} 38... a5 {[%clk
0:00:24.1]} 39. Rxb6 {[%clk 0:00:15.6]} 39... Rxa4 {[%clk 0:00:24.8]} 40. Rb7
{[%clk 0:00:15]} 40... Ra1+ {[%clk 0:00:23.8]} 41. Kg2 {[%clk 0:00:15]} 41...
Ra2 {[%clk 0:00:24.7]} 42. Nd8 {[%clk 0:00:13.9]} 42... Rxf2+ {[%clk 0:00:24.4]}
43. Kg1 {[%clk 0:00:13.5]} 43... Kg6 {[%clk 0:00:24.3]} 44. Nc6 {[%clk
0:00:11.6]} 44... f6 {[%clk 0:00:14.4]} 45. Nxa5 {[%clk 0:00:08.1]} 45... Rf3
{[%clk 0:00:11.9]} 46. Rb3 {[%clk 0:00:06.9]} 46... Rg3+ {[%clk 0:00:10.7]} 47.
Kh2 {[%clk 0:00:07.4]} 47... Rxg4 {[%clk 0:00:11.6]} 48. Rb6 {[%clk 0:00:06.8]}
48... Ng5 {[%clk 0:00:10.8]} 49. Nc6 {[%clk 0:00:06.2]} 49... Kh5 {[%clk
0:00:10.8]} 50. Nd8 {[%clk 0:00:05.6]} 50... Kh4 {[%clk 0:00:09.5]} 51. Rb1
{[%clk 0:00:01.9]} 51... Rg3 {[%clk 0:00:05.7]} 0-1

[Event "Early-Titled-Tuesday-Blitz-October-24-2023"]
[Site "Chess.com"]
[Date "2023.10.24"]
[Round "3"]
[White "Bilan_Danila"]
[Black "GMJustin"]
[Result "0-1"]
[WhiteElo "2403"]
[BlackElo "2216"]
[TimeControl "180+1"]
[EndTime "8:28:10 PDT"]
[Termination "GMJustin won by resignation"]

1. d4 {[%clk 0:02:59.6]} 1... Nf6 {[%clk 0:02:55.2]} 2. Nf3 {[%clk 0:02:59.6]}
2... d5 {[%clk 0:02:52.3]} 3. c4 {[%clk 0:02:59.5]} 3... e6 {[%clk 0:02:51.6]}
4. Nc3 {[%clk 0:02:59.7]} 4... Nbd7 {[%clk 0:02:46.5]} 5. Bg5 {[%clk 0:02:57.7]}
5... Be7 {[%clk 0:02:43.6]} 6. e3 {[%clk 0:02:54]} 6... O-O {[%clk 0:02:40.8]}
7. Bd3 {[%clk 0:02:54.4]} 7... dxc4 {[%clk 0:01:53.8]} 8. Bxc4 {[%clk
0:02:54.4]} 8... c6 {[%clk 0:01:54]} 9. O-O {[%clk 0:02:53.3]} 9... Nd5 {[%clk
0:01:51]} 10. Bxe7 {[%clk 0:02:50.9]} 10... Qxe7 {[%clk 0:01:51.1]} 11. e4
{[%clk 0:02:48.5]} 11... Nxc3 {[%clk 0:01:47.4]} 12. bxc3 {[%clk 0:02:49.4]}
12... e5 {[%clk 0:01:46.1]} 13. Re1 {[%clk 0:02:45.7]} 13... Nb6 {[%clk
0:01:39.9]} 14. Nxe5 {[%clk 0:02:28.4]} 14... Nxc4 {[%clk 0:01:19.5]} 15. Nxc4
{[%clk 0:02:29.3]} 15... Be6 {[%clk 0:01:19.3]} 16. Ne3 {[%clk 0:02:17.8]} 16...
Rad8 {[%clk 0:01:15.2]} 17. Qc2 {[%clk 0:02:08.8]} 17... f6 {[%clk 0:01:06.4]}
18. Rad1 {[%clk 0:02:04.3]} 18... Qf7 {[%clk 0:01:01.9]} 19. c4 {[%clk
0:01:53.3]} 19... f5 {[%clk 0:00:46.9]} 20. d5 {[%clk 0:01:27]} 20... cxd5
{[%clk 0:00:43.3]} 21. exd5 {[%clk 0:00:53.5]} 21... Bc8 {[%clk 0:00:41.7]} 22.
f4 {[%clk 0:00:50.5]} 22... Rfe8 {[%clk 0:00:34.4]} 23. Nf1 {[%clk 0:00:43.6]}
23... Qf6 {[%clk 0:00:28.7]} 24. Qd2 {[%clk 0:00:25.7]} 24... b6 {[%clk
0:00:23.8]} 25. Rxe8+ {[%clk 0:00:14]} 25... Rxe8 {[%clk 0:00:23.6]} 26. Re1
{[%clk 0:00:14.6]} 26... Rxe1 {[%clk 0:00:15.1]} 27. Qxe1 {[%clk 0:00:14.9]}
27... Qd4+ {[%clk 0:00:15.3]} 28. Qe3 {[%clk 0:00:15.6]} 28... Qxe3+ {[%clk
0:00:11.6]} 29. Nxe3 {[%clk 0:00:16.5]} 29... Kf7 {[%clk 0:00:11.4]} 30. Kf2
{[%clk 0:00:16.2]} 30... Ke7 {[%clk 0:00:10.3]} 31. Ke2 {[%clk 0:00:15.6]} 31...
Kd6 {[%clk 0:00:10.3]} 32. Kd3 {[%clk 0:00:15.8]} 32... Kc5 {[%clk 0:00:10.5]}
33. Kc3 {[%clk 0:00:16.2]} 33... Bd7 {[%clk 0:00:08.3]} 34. g3 {[%clk
0:00:09.9]} 34... a6 {[%clk 0:00:07.7]} 35. a3 {[%clk 0:00:09.9]} 35... b5
{[%clk 0:00:05.5]} 36. cxb5 {[%clk 0:00:09.5]} 36... axb5 {[%clk 0:00:05.7]} 37.
Kd3 {[%clk 0:00:05.7]} 37... Bc8 {[%clk 0:00:04.5]} 38. Kc3 {[%clk 0:00:05.3]}
38... Bd7 {[%clk 0:00:04.6]} 39. Nc2 {[%clk 0:00:03.7]} 39... Kxd5 {[%clk
0:00:03.4]} 40. Nd4 {[%clk 0:00:04.3]} 40... Ke4 {[%clk 0:00:03]} 41. Nb3 {[%clk
0:00:03.1]} 41... Kf3 {[%clk 0:00:02.3]} 42. Nc5 {[%clk 0:00:03.7]} 42... Bc8
{[%clk 0:00:02.1]} 43. Kb4 {[%clk 0:00:04.1]} 43... Kg2 {[%clk 0:00:02.2]} 44.
Kxb5 {[%clk 0:00:03.4]} 44... Kxh2 {[%clk 0:00:02.4]} 45. a4 {[%clk 0:00:04.1]}
45... Kxg3 {[%clk 0:00:02.4]} 46. a5 {[%clk 0:00:04.7]} 46... h5 {[%clk
0:00:02.3]} 47. Kb6 {[%clk 0:00:04.3]} 47... h4 {[%clk 0:00:02.1]} 48. Nb7
{[%clk 0:00:04]} 48... h3 {[%clk 0:00:01.8]} 49. a6 {[%clk 0:00:04.6]} 49... h2
{[%clk 0:00:01.8]} 50. a7 {[%clk 0:00:05.2]} 50... Bxb7 {[%clk 0:00:02]} 51.
Kxb7 {[%clk 0:00:04.3]} 51... h1=Q+ {[%clk 0:00:02.3]} 52. Kb8 {[%clk
0:00:05.2]} 52... Kxf4 {[%clk 0:00:02.5]} 53. a8=Q {[%clk 0:00:06.1]} 53...
Qxa8+ {[%clk 0:00:02.6]} 54. Kxa8 {[%clk 0:00:06.5]} 54... Ke5 {[%clk
0:00:03.1]} 55. Kb7 {[%clk 0:00:07.4]} 55... f4 {[%clk 0:00:03.5]} 0-1

[Event "Early-Titled-Tuesday-Blitz-October-24-2023"]
[Site "Chess.com"]
[Date "2023.10.24"]
[Round "3"]
[White "ilushka"]
[Black "m_ezat"]
[Result "1-0"]
[WhiteElo "2453"]
[BlackElo "2598"]
[TimeControl "180+1"]
[EndTime "8:28:11 PDT"]
[Termination "ilushka won by checkmate"]

1. e4 {[%clk 0:03:00.9]} 1... c6 {[%clk 0:02:16.6]} 2. Nf3 {[%clk 0:02:59.8]}
2... d5 {[%clk 0:02:14.1]} 3. Nc3 {[%clk 0:02:59.5]} 3... Bg4 {[%clk 0:02:04]}
4. h3 {[%clk 0:02:59]} 4... Bh5 {[%clk 0:02:03.4]} 5. g4 {[%clk 0:02:57.9]} 5...
Bg6 {[%clk 0:02:03.5]} 6. exd5 {[%clk 0:02:49.7]} 6... cxd5 {[%clk 0:02:04.4]}
7. Ne5 {[%clk 0:02:42]} 7... Nc6 {[%clk 0:02:04.5]} 8. Bb5 {[%clk 0:02:37.4]}
8... Rc8 {[%clk 0:02:04.4]} 9. d4 {[%clk 0:02:32.3]} 9... e6 {[%clk 0:02:03.7]}
10. Bf4 {[%clk 0:02:18.8]} 10... Bb4 {[%clk 0:01:59.9]} 11. Qd2 {[%clk
0:02:11.2]} 11... Ne7 {[%clk 0:01:50.7]} 12. Nxg6 {[%clk 0:02:00.7]} 12... Nxg6
{[%clk 0:01:47.6]} 13. Be3 {[%clk 0:01:50.4]} 13... Qa5 {[%clk 0:01:47.2]} 14.
Bd3 {[%clk 0:01:38.4]} 14... Nh4 {[%clk 0:01:40.1]} 15. Ke2 {[%clk 0:01:28]}
15... Ng2 {[%clk 0:01:38.6]} 16. a3 {[%clk 0:01:19.6]} 16... Bxc3 {[%clk
0:01:37.4]} 17. Qxc3 {[%clk 0:01:15.3]} 17... Qxc3 {[%clk 0:01:37.1]} 18. bxc3
{[%clk 0:01:15.6]} 18... Nxe3 {[%clk 0:01:37.2]} 19. fxe3 {[%clk 0:01:15.7]}
19... Na5 {[%clk 0:01:37.1]} 20. Kd2 {[%clk 0:01:15.4]} 20... b6 {[%clk
0:01:37.3]} 21. Rhe1 {[%clk 0:01:07.7]} 21... Rc7 {[%clk 0:01:32.6]} 22. e4
{[%clk 0:01:06.9]} 22... dxe4 {[%clk 0:01:28.5]} 23. Rxe4 {[%clk 0:01:07.8]}
23... O-O {[%clk 0:01:28.3]} 24. Ba6 {[%clk 0:01:02.1]} 24... Rd8 {[%clk
0:01:24.9]} 25. Kd3 {[%clk 0:00:57.6]} 25... g6 {[%clk 0:01:20.1]} 26. g5 {[%clk
0:00:56.6]} 26... Rxd4+ {[%clk 0:01:20]} 27. Rxd4 {[%clk 0:00:51.1]} 27... Nc6
{[%clk 0:01:17.8]} 28. Re4 {[%clk 0:00:47.4]} 28... Ne7 {[%clk 0:01:16.6]} 29.
a4 {[%clk 0:00:35.3]} 29... Nd5 {[%clk 0:01:13.8]} 30. a5 {[%clk 0:00:30.7]}
30... Rxc3+ {[%clk 0:01:13.2]} 31. Kd2 {[%clk 0:00:30.3]} 31... Rxh3 {[%clk
0:01:10.7]} 32. axb6 {[%clk 0:00:27.6]} 32... axb6 {[%clk 0:01:10.7]} 33. Bc4
{[%clk 0:00:24]} 33... Rh2+ {[%clk 0:01:11]} 34. Re2 {[%clk 0:00:18.2]} 34...
Rh5 {[%clk 0:01:08.2]} 35. Bxd5 {[%clk 0:00:17.9]} 35... exd5 {[%clk 0:01:09.1]}
36. Rg1 {[%clk 0:00:13.4]} 36... h6 {[%clk 0:01:07.2]} 37. gxh6 {[%clk
0:00:13.1]} 37... Rxh6 {[%clk 0:01:07.1]} 38. Re5 {[%clk 0:00:13.6]} 38... Rh2+
{[%clk 0:01:06.8]} 39. Kc3 {[%clk 0:00:13]} 39... d4+ {[%clk 0:01:07.2]} 40. Kb3
{[%clk 0:00:12.6]} 40... Rh3+ {[%clk 0:01:06.3]} 41. Kc4 {[%clk 0:00:10.1]}
41... Rc3+ {[%clk 0:01:06]} 42. Kxd4 {[%clk 0:00:10]} 42... Rxc2 {[%clk
0:01:06.9]} 43. Rb1 {[%clk 0:00:08.5]} 43... Rc6 {[%clk 0:01:06.2]} 44. Reb5
{[%clk 0:00:08.6]} 44... Rf6 {[%clk 0:01:05.2]} 45. Rxb6 {[%clk 0:00:09]} 45...
Rf5 {[%clk 0:01:05.8]} 46. Ke4 {[%clk 0:00:08.8]} 46... Kg7 {[%clk 0:01:05.3]}
47. Rd1 {[%clk 0:00:08.5]} 47... Rf2 {[%clk 0:01:05.3]} 48. Rdd6 {[%clk
0:00:08.5]} 48... Rf5 {[%clk 0:01:03.1]} 49. Rd7 {[%clk 0:00:08]} 49... Rf1
{[%clk 0:01:02.7]} 50. Rd3 {[%clk 0:00:07.9]} 50... Re1+ {[%clk 0:01:00.8]} 51.
Kf4 {[%clk 0:00:07.7]} 51... Rf1+ {[%clk 0:00:59.4]} 52. Rf3 {[%clk 0:00:08.2]}
52... Rc1 {[%clk 0:00:58.3]} 53. Rb7 {[%clk 0:00:08.7]} 53... Rc8 {[%clk
0:00:51.2]} 54. Kg5 {[%clk 0:00:08.5]} 54... Rf8 {[%clk 0:00:52.1]} 55. Rf6
{[%clk 0:00:08.1]} 55... Kg8 {[%clk 0:00:51.2]} 56. Kh6 {[%clk 0:00:08.3]} 56...
g5 {[%clk 0:00:47.2]} 57. Kxg5 {[%clk 0:00:07.7]} 57... Kg7 {[%clk 0:00:47.5]}
58. Rc7 {[%clk 0:00:07.6]} 58... Kg8 {[%clk 0:00:43.1]} 59. Kh6 {[%clk
0:00:07.9]} 59... Re8 {[%clk 0:00:35.3]} 60. Rfxf7 {[%clk 0:00:06.8]} 60... Re6+
{[%clk 0:00:34.7]} 61. Kg5 {[%clk 0:00:07.2]} 61... Re5+ {[%clk 0:00:33.8]} 62.
Kf6 {[%clk 0:00:06.8]} 62... Re8 {[%clk 0:00:28.9]} 63. Rg7+ {[%clk 0:00:06.7]}
63... Kf8 {[%clk 0:00:29.8]} 64. Rcf7# {[%clk 0:00:06.2]} 1-0

[Event "Early-Titled-Tuesday-Blitz-October-24-2023"]
[Site "Chess.com"]
[Date "2023.10.24"]
[Round "3"]
[White "jcibarra"]
[Black "djokovic74"]
[Result "1-0"]
[WhiteElo "2939"]
[BlackElo "2691"]
[TimeControl "180+1"]
[EndTime "8:28:12 PDT"]
[Termination "jcibarra won by resignation"]

1. e4 {[%clk 0:03:00.9]} 1... e6 {[%clk 0:02:59.5]} 2. d4 {[%clk 0:03:00.7]}
2... d5 {[%clk 0:02:59.9]} 3. Nc3 {[%clk 0:03:00.6]} 3... Nf6 {[%clk 0:02:59.7]}
4. Bg5 {[%clk 0:02:59.8]} 4... dxe4 {[%clk 0:02:58.2]} 5. Nxe4 {[%clk
0:02:59.4]} 5... Be7 {[%clk 0:02:58.6]} 6. Bxf6 {[%clk 0:02:59.1]} 6... gxf6
{[%clk 0:02:59.1]} 7. Nf3 {[%clk 0:02:59.1]} 7... f5 {[%clk 0:02:59.7]} 8. Nc3
{[%clk 0:02:59.2]} 8... a6 {[%clk 0:03:00.2]} 9. Qd2 {[%clk 0:02:58.6]} 9... b5
{[%clk 0:03:00.3]} 10. O-O-O {[%clk 0:02:58.7]} 10... Qd6 {[%clk 0:02:56]} 11.
Qe3 {[%clk 0:02:58]} 11... Nd7 {[%clk 0:02:54.5]} 12. d5 {[%clk 0:02:57.3]}
12... e5 {[%clk 0:02:54.1]} 13. g3 {[%clk 0:02:50.7]} 13... Qc5 {[%clk
0:02:24.7]} 14. Qd2 {[%clk 0:02:33.2]} 14... e4 {[%clk 0:02:07.8]} 15. Nd4
{[%clk 0:02:31.7]} 15... Ne5 {[%clk 0:02:07.7]} 16. Qf4 {[%clk 0:01:51.6]} 16...
Ng6 {[%clk 0:02:04]} 17. Qe3 {[%clk 0:01:46.9]} 17... Ne5 {[%clk 0:01:18.7]} 18.
Qf4 {[%clk 0:01:37.1]} 18... Ng6 {[%clk 0:01:18.1]} 19. Qd2 {[%clk 0:01:37.8]}
19... Ne5 {[%clk 0:01:17.4]} 20. Nb3 {[%clk 0:01:34.6]} 20... Qb6 {[%clk
0:01:06.1]} 21. Kb1 {[%clk 0:01:14.8]} 21... Bd7 {[%clk 0:01:02]} 22. d6 {[%clk
0:01:09.3]} 22... Nf3 {[%clk 0:00:34.4]} 23. Qh6 {[%clk 0:00:59.9]} 23... Bg5
{[%clk 0:00:28.1]} 24. Qg7 {[%clk 0:00:57.4]} 24... O-O-O {[%clk 0:00:28.3]} 25.
dxc7 {[%clk 0:00:54.1]} 25... Qxc7 {[%clk 0:00:17.6]} 26. Be2 {[%clk 0:00:52.5]}
26... Ne5 {[%clk 0:00:11.7]} 27. Nd5 {[%clk 0:00:51.6]} 27... Qd6 {[%clk
0:00:11.3]} 28. Qxg5 {[%clk 0:00:51.5]} 28... Rde8 {[%clk 0:00:11.3]} 29. Nf6
{[%clk 0:00:49.5]} 29... Qe7 {[%clk 0:00:11.8]} 30. Qh6 {[%clk 0:00:37.8]} 30...
Qe6 {[%clk 0:00:10]} 31. Nc5 {[%clk 0:00:36.2]} 31... Qc6 {[%clk 0:00:09.1]} 32.
Ncxd7 {[%clk 0:00:34]} 32... Nxd7 {[%clk 0:00:09.6]} 33. Rxd7 {[%clk 0:00:34.1]}
33... Re6 {[%clk 0:00:10.4]} 34. Rxf7 {[%clk 0:00:33.5]} 34... e3 {[%clk
0:00:10.4]} 35. Rf8+ {[%clk 0:00:33.3]} 35... Kb7 {[%clk 0:00:07.5]} 36. Rf7+
{[%clk 0:00:32.5]} 36... Kb6 {[%clk 0:00:07.5]} 37. f3 {[%clk 0:00:31.6]} 37...
Rd8 {[%clk 0:00:05.8]} 38. Qxh7 {[%clk 0:00:19.2]} 38... Rd2 {[%clk 0:00:05.7]}
39. Nd7+ {[%clk 0:00:14.1]} 39... Ka5 {[%clk 0:00:05.8]} 40. Qxf5 {[%clk
0:00:11.5]} 40... Red6 {[%clk 0:00:03.9]} 41. Rc1 {[%clk 0:00:10.5]} 41... Rxe2
{[%clk 0:00:03.5]} 42. Ne5 {[%clk 0:00:10.7]} 42... Qc5 {[%clk 0:00:02.6]} 43.
a3 {[%clk 0:00:10.3]} 43... b4 {[%clk 0:00:02.7]} 44. Nc4+ {[%clk 0:00:10.3]}
44... Kb5 {[%clk 0:00:02.9]} 45. Qxc5+ {[%clk 0:00:10.5]} 45... Kxc5 {[%clk
0:00:03.7]} 46. Nxd6 {[%clk 0:00:11]} 46... Kxd6 {[%clk 0:00:03]} 47. axb4
{[%clk 0:00:11.6]} 47... Rd2 {[%clk 0:00:01.6]} 48. Rf4 {[%clk 0:00:11.9]} 48...
e2 {[%clk 0:00:01.8]} 49. Re4 {[%clk 0:00:12.6]} 49... Kd5 {[%clk 0:00:02.3]}
50. c3 {[%clk 0:00:10.4]} 50... Kd6 {[%clk 0:00:02.6]} 51. Rd4+ {[%clk
0:00:10.4]} 51... Rxd4 {[%clk 0:00:02.5]} 52. cxd4 {[%clk 0:00:11.3]} 52... Kd5
{[%clk 0:00:03.3]} 53. Re1 {[%clk 0:00:12.1]} 53... Kxd4 {[%clk 0:00:03.9]} 54.
Rxe2 {[%clk 0:00:13]} 1-0

[Event "Early-Titled-Tuesday-Blitz-October-24-2023"]
[Site "Chess.com"]
[Date "2023.10.24"]
[Round "3"]
[White "Doomfist26"]
[Black "verrbaa"]
[Result "1-0"]
[WhiteElo "2627"]
[BlackElo "2451"]
[TimeControl "180+1"]
[EndTime "8:28:13 PDT"]
[Termination "Doomfist26 won on time"]

1. e4 {[%clk 0:02:56.7]} 1... e5 {[%clk 0:02:57.9]} 2. Nf3 {[%clk 0:02:56.5]}
2... Nc6 {[%clk 0:02:57.8]} 3. Bb5 {[%clk 0:02:55.5]} 3... a6 {[%clk 0:02:57.2]}
4. Ba4 {[%clk 0:02:55.9]} 4... Nf6 {[%clk 0:02:56.8]} 5. O-O {[%clk 0:02:55.9]}
5... Be7 {[%clk 0:02:53.1]} 6. Re1 {[%clk 0:02:55.7]} 6... b5 {[%clk 0:02:51]}
7. Bb3 {[%clk 0:02:55.7]} 7... d6 {[%clk 0:02:51.4]} 8. c3 {[%clk 0:02:54.7]}
8... O-O {[%clk 0:02:51.3]} 9. h3 {[%clk 0:02:55.1]} 9... Re8 {[%clk 0:02:48.3]}
10. d4 {[%clk 0:02:51.6]} 10... Bb7 {[%clk 0:02:43.9]} 11. Nbd2 {[%clk
0:02:45.9]} 11... Bf8 {[%clk 0:02:43.4]} 12. Bc2 {[%clk 0:02:42.9]} 12... g6
{[%clk 0:02:32.8]} 13. a3 {[%clk 0:02:01]} 13... Bg7 {[%clk 0:02:00.7]} 14. Nf1
{[%clk 0:01:58.6]} 14... Qe7 {[%clk 0:01:34.9]} 15. Ng3 {[%clk 0:01:56.1]} 15...
Nb8 {[%clk 0:01:34.5]} 16. h4 {[%clk 0:01:50.6]} 16... Bc8 {[%clk 0:01:21.9]}
17. Nh2 {[%clk 0:01:44]} 17... c5 {[%clk 0:01:21.1]} 18. h5 {[%clk 0:01:42]}
18... cxd4 {[%clk 0:01:19.2]} 19. cxd4 {[%clk 0:01:41.6]} 19... exd4 {[%clk
0:01:19.3]} 20. h6 {[%clk 0:01:31.9]} 20... Bh8 {[%clk 0:01:19.2]} 21. Qxd4
{[%clk 0:01:19.4]} 21... Nc6 {[%clk 0:01:18.3]} 22. Qd1 {[%clk 0:01:16.8]} 22...
Bb7 {[%clk 0:01:05.7]} 23. Bb3 {[%clk 0:01:08.7]} 23... Ne5 {[%clk 0:00:55.9]}
24. Bg5 {[%clk 0:01:07.4]} 24... Qd7 {[%clk 0:00:45.5]} 25. Qd2 {[%clk
0:00:57.6]} 25... Nc4 {[%clk 0:00:38.1]} 26. Qf4 {[%clk 0:00:54.6]} 26... Re6
{[%clk 0:00:32.8]} 27. Nf3 {[%clk 0:00:50.8]} 27... Rae8 {[%clk 0:00:20.3]} 28.
Nd4 {[%clk 0:00:48]} 28... Nd5 {[%clk 0:00:20.5]} 29. exd5 {[%clk 0:00:23.9]}
29... Rxe1+ {[%clk 0:00:21.4]} 30. Rxe1 {[%clk 0:00:22.5]} 30... Rxe1+ {[%clk
0:00:22.3]} 31. Kh2 {[%clk 0:00:23.4]} 31... Bxd5 {[%clk 0:00:21.6]} 32. Bf6
{[%clk 0:00:22.9]} 32... Ne5 {[%clk 0:00:11.4]} 33. f3 {[%clk 0:00:17.1]} 33...
Bxb3 {[%clk 0:00:06.5]} 34. Bxh8 {[%clk 0:00:17.4]} 34... f5 {[%clk 0:00:06.7]}
35. Bf6 {[%clk 0:00:12.6]} 35... Nd3 {[%clk 0:00:04.2]} 36. Qd2 {[%clk
0:00:10.5]} 36... Re8 {[%clk 0:00:02.9]} 37. Nxb3 {[%clk 0:00:10]} 37... Ne5
{[%clk 0:00:01.9]} 38. Bxe5 {[%clk 0:00:09.8]} 38... Rxe5 {[%clk 0:00:02.8]} 39.
Nd4 {[%clk 0:00:10.4]} 39... Re8 {[%clk 0:00:03.1]} 40. Qc3 {[%clk 0:00:10.2]}
40... Qf7 {[%clk 0:00:03.5]} 41. Nde2 {[%clk 0:00:09.7]} 41... d5 {[%clk
0:00:03.8]} 42. Nf4 {[%clk 0:00:09.8]} 42... Rd8 {[%clk 0:00:04]} 43. Qd4 {[%clk
0:00:09.9]} 43... Rd7 {[%clk 0:00:03.7]} 44. Nh3 {[%clk 0:00:09.3]} 44... Qe7
{[%clk 0:00:03.4]} 45. Qf4 {[%clk 0:00:03.8]} 45... Rd6 {[%clk 0:00:03.6]} 46.
Ne2 {[%clk 0:00:02.9]} 46... Qf6 {[%clk 0:00:02.7]} 47. Nd4 {[%clk 0:00:02.9]}
47... Rd7 {[%clk 0:00:02.1]} 48. Ng5 {[%clk 0:00:03.5]} 48... Rd8 {[%clk
0:00:02]} 49. Nde6 {[%clk 0:00:03]} 49... Re8 {[%clk 0:00:01.7]} 50. Qc7 {[%clk
0:00:03.5]} 50... Re7 {[%clk 0:00:01.9]} 51. Qd8+ {[%clk 0:00:03.6]} 1-0

[Event "Early-Titled-Tuesday-Blitz-October-24-2023"]
[Site "Chess.com"]
[Date "2023.10.24"]
[Round "3"]
[White "El_Matador12"]
[Black "AndrewB92"]
[Result "0-1"]
[WhiteElo "2592"]
[BlackElo "2465"]
[TimeControl "180+1"]
[EndTime "8:28:16 PDT"]
[Termination "AndrewB92 won on time"]

1. d4 {[%clk 0:02:55]} 1... Nf6 {[%clk 0:02:59.4]} 2. Bg5 {[%clk 0:02:55.1]}
2... e6 {[%clk 0:02:58.6]} 3. Nd2 {[%clk 0:02:54.5]} 3... d5 {[%clk 0:02:58.3]}
4. e3 {[%clk 0:02:53.9]} 4... c5 {[%clk 0:02:57.1]} 5. c3 {[%clk 0:02:53.2]}
5... Nc6 {[%clk 0:02:56.4]} 6. Bd3 {[%clk 0:02:52.3]} 6... Be7 {[%clk
0:02:53.6]} 7. f4 {[%clk 0:02:51.8]} 7... h6 {[%clk 0:02:51.4]} 8. Bxf6 {[%clk
0:02:50.7]} 8... Bxf6 {[%clk 0:02:48.2]} 9. Ngf3 {[%clk 0:02:51.6]} 9... cxd4
{[%clk 0:02:41.9]} 10. exd4 {[%clk 0:02:51]} 10... O-O {[%clk 0:02:40]} 11. O-O
{[%clk 0:02:50.7]} 11... Qd6 {[%clk 0:02:31.4]} 12. Ne5 {[%clk 0:02:50.2]} 12...
a6 {[%clk 0:02:21.2]} 13. Qh5 {[%clk 0:02:39.1]} 13... Bd7 {[%clk 0:02:12.4]}
14. Rf3 {[%clk 0:02:23.5]} 14... Qe7 {[%clk 0:02:03]} 15. Rg3 {[%clk 0:02:20.7]}
15... Kh8 {[%clk 0:02:01]} 16. Ndf3 {[%clk 0:02:10.9]} 16... Bxe5 {[%clk
0:01:32.4]} 17. fxe5 {[%clk 0:02:04.7]} 17... f5 {[%clk 0:01:29.3]} 18. exf6
{[%clk 0:01:57.9]} 18... Qxf6 {[%clk 0:01:28.8]} 19. Rg6 {[%clk 0:01:50.9]}
19... Be8 {[%clk 0:01:17.8]} 20. Rxf6 {[%clk 0:01:50]} 20... Bxh5 {[%clk
0:01:17.4]} 21. Rxf8+ {[%clk 0:01:40.8]} 21... Rxf8 {[%clk 0:01:17.2]} 22. Rf1
{[%clk 0:01:29.5]} 22... Bxf3 {[%clk 0:01:12.4]} 23. Rxf3 {[%clk 0:01:30.4]}
23... Rxf3 {[%clk 0:00:59.8]} 24. gxf3 {[%clk 0:01:31.3]} 24... g5 {[%clk
0:00:59.2]} 25. Kf2 {[%clk 0:01:06.7]} 25... Kg7 {[%clk 0:00:59]} 26. Ke3 {[%clk
0:00:57.6]} 26... Kf6 {[%clk 0:00:45.3]} 27. f4 {[%clk 0:00:54.7]} 27... g4
{[%clk 0:00:41.1]} 28. Kf2 {[%clk 0:00:43.8]} 28... h5 {[%clk 0:00:28.3]} 29.
Kg3 {[%clk 0:00:41.2]} 29... Kg7 {[%clk 0:00:25.9]} 30. Kh4 {[%clk 0:00:25.3]}
30... Kh6 {[%clk 0:00:25]} 31. h3 {[%clk 0:00:17.9]} 31... gxh3 {[%clk
0:00:23.3]} 32. Kxh3 {[%clk 0:00:18.8]} 32... Ne7 {[%clk 0:00:22.5]} 33. Kg3
{[%clk 0:00:17.6]} 33... Ng6 {[%clk 0:00:14.6]} 34. b3 {[%clk 0:00:15.9]} 34...
b5 {[%clk 0:00:12.7]} 35. a4 {[%clk 0:00:10.9]} 35... bxa4 {[%clk 0:00:12]} 36.
bxa4 {[%clk 0:00:11.8]} 36... a5 {[%clk 0:00:12.3]} 37. c4 {[%clk 0:00:12.1]}
37... dxc4 {[%clk 0:00:10.4]} 38. Bxc4 {[%clk 0:00:13]} 38... Nf8 {[%clk
0:00:09.5]} 39. Kh4 {[%clk 0:00:13.5]} 39... Kg6 {[%clk 0:00:09.3]} 40. Bd3+
{[%clk 0:00:13.4]} 40... Kh6 {[%clk 0:00:09]} 41. Bc4 {[%clk 0:00:12.7]} 41...
Kg6 {[%clk 0:00:09.1]} 42. Kg3 {[%clk 0:00:13]} 42... Kf5 {[%clk 0:00:08.3]} 43.
Bd3+ {[%clk 0:00:12.7]} 43... Kf6 {[%clk 0:00:08.3]} 44. Kh4 {[%clk 0:00:07.1]}
44... Ng6+ {[%clk 0:00:08.5]} 45. Kg3 {[%clk 0:00:07.6]} 45... Ne7 {[%clk
0:00:08.7]} 46. Kf3 {[%clk 0:00:03.5]} 46... Nf5 {[%clk 0:00:06.9]} 47. Ke4
{[%clk 0:00:03.6]} 47... h4 {[%clk 0:00:06.7]} 48. d5 {[%clk 0:00:02.9]} 48...
exd5+ {[%clk 0:00:04.7]} 0-1